Cogmind - Beta 12 @@@ ROGUE MODE // 2023.11.12 @ 00:38:32 Player: kaj Result: Destroyed by H-61 Shepherd with Heavy Assault Cannon Performance ------------- Evolutions (2) 1000 Regions Visited (5) 1000 Robots Destroyed (26) 130 Value Destroyed (835) 835 Prototype IDs (23) 460 Alien Tech Used (0) 0 Bonus (300) 300 TOTAL SCORE: 3725 Bonus ------- Aligned with FarCom 300 Cogmind --------- Core Integrity 0/550 Matter 300/300 Energy 77/100 System Corruption 0% Temperature Cool (9) Movement Core (100) Ox1 Location -8/Materials Parts ------- > --- POWER (1) -------- (None) > --- PROPULSION (4) --- (None) > --- UTILITY (4) ------ High-powered Tractor Beam > --- WEAPON (2) ------- Maul > --- INVENTORY (5) ---- Heavy Assault Rifle XL Autogun Array Peak State ------------ > --- POWER ------------ Light Nuclear Core > --- PROPULSION ------- Light Treads Aluminum Leg Compact Wheel Armored Wheel > --- UTILITY ---------- Improved Heat Sink Large Storage Unit Targeting Computer Medium Armor Plating > --- WEAPON ----------- Assault Cannon Assault Cannon > --- INVENTORY -------- Carbon-fiber Leg Carbon-fiber Leg High-capacity Matter Pod High-capacity Matter Pod Recoil Stabilizer High-powered Tractor Beam Shotgun Shotgun Minigun XL Autogun Array Improved Datajack Maul [Rating: 27] Favorites ----------- Power Light Nuclear Core Engine Light Ion Engine Power Core Light Nuclear Core Propulsion Aluminum Leg Treads Light Treads Leg Aluminum Leg Wheel Wheel Utility Large Storage Unit Device Improved Heat Sink Storage Large Storage Unit Processor Targeting Computer Protection Propulsion Shielding Weapon Assault Rifle Energy Gun Medium Laser Ballistic Gun Assault Rifle Ballistic Cannon Assault Cannon Launcher Grenade Launcher Impact Weapon Hammer Build | -11 -10 -10 -10 -9 -8 ------- Run | Jun Mat Min Exi Min Mat Slots Evolved 4 | . . . . . 4 Power . | . . . . . . Propulsion 2 | . . . . . 2 Utility 2 | . . . . . 2 Weapon . | . . . . . . Parts Attached 61 | . 9 10 6 1 35 Power 2 | . . 1 1 . . Engine 1 | . . 1 . . . Core 1 | . . . 1 . . Reactor . | . . . . . . Propulsion 14 | . . 4 1 . 9 Treads 2 | . . . . . 2 Leg 8 | . . 3 1 . 4 Wheel 4 | . . 1 . . 3 Hover . | . . . . . . Flight . | . . . . . . Utility 27 | . 5 3 2 . 17 Device 10 | . 1 1 1 . 7 Storage 5 | . 2 1 . . 2 Processor 2 | . . . . . 2 Hackware . | . . . . . . Protection 10 | . 2 1 1 . 6 Artifact . | . . . . . . Weapon 18 | . 4 2 2 1 9 Energy Gun . | . . . . . . Energy Cannon . | . . . . . . Ballistic Gun 9 | . 2 . 2 1 4 Ballistic Cannon 4 | . . . . . 4 Launcher 2 | . . 2 . . . Special Weapon . | . . . . . . Impact Weapon 3 | . 2 . . . 1 Slashing Weapon . | . . . . . . Piercing Weapon . | . . . . . . Special Melee Weapon . | . . . . . . Unidentified Prototypes . | . . . . . . Parts Lost 24 | . . 7 . . 17 Power 3 | . . 2 . . 1 Propulsion 8 | . . 2 . . 6 Utility 6 | . . 1 . . 5 Weapon 7 | . . 2 . . 5 Highest Loss Streak 17 | . . 6 . . 17 To Critical Strikes 1 | . . . . . 1 Average Slot Usage (%) 96 | . 96 98 100 100 89 Engine 6 | . 14 13 . . . Core 5 | . . . 14 14 8 Treads 1 | . . . . . 4 Leg 19 | . 28 27 14 14 8 Wheel 8 | . . . 14 14 16 Storage 12 | . 14 14 14 14 9 Processor 2 | . . . . . 9 Protection 12 | . 10 13 14 14 13 Ballistic Gun 18 | . 2 26 28 28 9 Ballistic Cannon 2 | . . . . . 8 Impact Weapon 3 | . 23 . . . . Naked Turns . | . . . . . . Heaviest Build 43 | 11 28 27 29 31 43 Greatest Support 28 | 20 20 20 10 10 28 Greatest Overweight (x) 4 | . 1 1 2 3 4 Average Overweight (x) 1 | . . 1 2 2 1 Largest Inventory Capacity 15 | 8 15 15 15 15 15 Average Capacity 14 | 8 10 15 15 15 14 Most Carried 15 | 6 12 15 13 15 15 Average Carried 12 | 6 8 14 11 14 14 Final Capacity 15 | 8 15 15 15 15 5 Final Carried 15 | 6 12 14 13 15 5 Class Distribution -------------------- 86% | Mutant 13% | Scavenger-Mutant Dominant Class ---------------- Mutant | -10/Materials Mutant | -10/Mines Mutant | -10/Exiles Mutant | -9/Mines Mutant | -8/Materials Resources | -11 -10 -10 -10 -9 -8 ----------- Run | Jun Mat Min Exi Min Mat Matter Collected 1499 | 200 42 257 264 17 719 Remotely 408 | . . 45 . . 363 Salvage Created 868 | . 114 266 . . 488 Parts 53 | . 7 20 . . 26 Haulers Intercepted . | . . . . . . Recyclers Shooed . | . . . . . . Parts Field Recycled . | . . . . . . Retrieved Matter . | . . . . . . Parts Self-Destructed . | . . . . . . Prevented . | . . . . . . Kills | -11 -10 -10 -10 -9 -8 ------- Run | Jun Mat Min Exi Min Mat Combat Hostiles Destroyed 31 | . 1 19 . . 11 Guns 13 | . . 9 . . 4 Cannons 7 | . . . . . 7 AOE 10 | . . 10 . . . Classes Destroyed 8 | . 3 2 . . 3 Worker 1 | . 1 . . . . Recycler 3 | . 1 . . . 2 Watcher 1 | . . . . . 1 Swarmer 5 | . . 5 . . . Grunt 10 | . 1 4 . . 5 Sentry 3 | . . . . . 3 Hunter 3 | . . . . . 3 Assembled 10 | . . 10 . . . Best Kill Streak 10 | . 3 10 . . 2 Combat Bots Only 10 | . 1 10 . . 2 Max Kills in Single Turn 8 | . 1 8 . . 1 Gunslinging . | . . . . . . Exploded 8 | . . 8 . . . Melee . | . . . . . . Uniques/NPCs Destroyed . | . . . . . . Combat | -11 -10 -10 -10 -9 -8 -------- Run | Jun Mat Min Exi Min Mat Damage Taken 3453 | . 12 985 . . 2456 Core 831 | . . 235 . . 596 Absorbed by Shields . | . . . . . . Redirected to Shielding 61 | . 3 31 . . 27 Core Remaining (%) 53 | 100 . . . 6 . Volleys Fired 90 | . 2 30 . . 58 Largest 2 | . 2 2 . . 2 Hottest 88 | . 70 60 . . 88 Shots Fired 175 | . 4 57 . . 114 Gun 92 | . 4 50 . . 38 Cannon 76 | . . . . . 76 Launcher 7 | . . 7 . . . Special . | . . . . . . Kinetic 166 | . 2 50 . . 114 Thermal 2 | . 2 . . . . Explosive 7 | . . 7 . . . Electromagnetic . | . . . . . . Robot Hit Streak 14 | . 1 11 . . 14 Robot Miss Streak 5 | . 1 3 . . 5 Penetration Max . | . . . . . . Secondary Targets 3 | . . 3 . . . Max Gunslinging Chain 1 | . . 1 . . . Shots Hit Robots 124 | . 8 35 . . 81 Core Hits 64 | . 2 34 . . 28 Critical Kills 1 | . 1 . . . . Critical Parts Destroyed 1 | . 1 . . . . Critical Strikes 3 | . 2 . . . 1 Blast 1 | . . . . . 1 Smash 2 | . 2 . . . . Melee Attacks 8 | . 8 . . . . Impact 8 | . 8 . . . . Slashing . | . . . . . . Piercing . | . . . . . . Sneak Attacks 2 | . 2 . . . . Combat Hostiles . | . . . . . . Follow-up Attacks 1 | . 1 . . . . Damage Inflicted 3044 | . 237 991 . . 1816 Guns 938 | . 14 376 . . 548 Cannons 1267 | . . . . . 1267 Explosions 615 | . . 615 . . . Melee 223 | . 223 . . . . Ramming 1 | . . . . . 1 Kinetic 2205 | . 14 376 . . 1815 Thermal . | . . . . . . Explosive 615 | . . 615 . . . Electromagnetic . | . . . . . . Impact 223 | . 223 . . . . Slashing . | . . . . . . Piercing . | . . . . . . Highest Corruption 4 | . . 4 4 4 . Average Corruption 4 | . . 4 4 4 . Corruption Purged . | . . . . . . Corruption Blocked . | . . . . . . Effects 16 | . . 1 9 6 . Message Errors 4 | . . . 2 2 . Matter Fused 6 | . . . 3 3 . Heat Flow Errors 3 | . . 1 1 1 . Energy Discharges 1 | . . . 1 . . Data Loss (minor) 1 | . . . 1 . . Data Loss (major) 1 | . . . 1 . . Overload Shots . | . . . . . . Overflow Damage 50 | . 25 . . . 25 Projectiles 25 | . . . . . 25 Explosions . | . . . . . . Melee 25 | . 25 . . . . Knockbacks 13 | . 1 . . . 12 Impact 1 | . 1 . . . . Kinetic 11 | . . . . . 11 Secondary 1 | . . . . . 1 Self-Inflicted Damage 61 | . . 61 . . . Shots 2 | . . 2 . . . Rammed 2 | . . . . . 2 Targets Rammed 2 | . . . . . 2 Kicked . | . . . . . . Crushed . | . . . . . . Highest Temperature 291 | . 40 209 121 274 291 Average Temperature 69 | . 20 45 67 139 71 Received Heat Transfer 773 | . 6 173 . . 594 Siege Activations . | . . . . . . Robots Corrupted . | . . . . . . Combat Hostiles . | . . . . . . Parts Fried 2 | . 2 . . . . Impact Corruptions 1 | . 1 . . . . Robots Melted . | . . . . . . Combat Hostiles . | . . . . . . Parts Melted . | . . . . . . Heat Transferred . | . . . . . . Parts Sabotaged . | . . . . . . Parts Stolen . | . . . . . . Parts Stripped . | . . . . . . Power Chain Reactions . | . . . . . . Missiles Intercepted . | . . . . . . Alert | -11 -10 -10 -10 -9 -8 ------- Run | Jun Mat Min Exi Min Mat Peak Influence 244 | . 85 208 . . 244 Initial 33 | . . 33 . . . Average 77 | . 58 107 . . 90 Maximum Alert Level 1 | . . 1 . . 1 Low Security (%) 87 | 100 100 69 . 100 94 Level 1 12 | . . 30 . . 5 Level 2 . | . . . . . . Level 3 . | . . . . . . Level 4 . | . . . . . . Level 5 . | . . . . . . High Security . | . . . . . . Max Security . | . . . . . . Squads Dispatched 4 | . 1 . . . 3 Investigation 1 | . . . . . 1 Extermination . | . . . . . . Reinforcement 3 | . 1 . . . 2 Assault . | . . . . . . Garrison . | . . . . . . Intercept . | . . . . . . Searches Triggered . | . . . . . . Construction Impeded . | . . . . . . Haulers Reinforced . | . . . . . . Active Scanning Responses . | . . . . . . Cargo Convoy Interrupts . | . . . . . . Stealth | -11 -10 -10 -10 -9 -8 --------- Run | Jun Mat Min Exi Min Mat Distress Signals 2 | . 1 . . . 1 Communications Jammed . | . . . . . . Distress Signals . | . . . . . . Times Spotted 65 | . 7 30 . . 28 Peak Tracking Total 11 | . 3 11 . . 10 Tactical Retreats 1 | . . . . . 1 Traps | -11 -10 -10 -10 -9 -8 ------- Run | Jun Mat Min Exi Min Mat Traps Triggered 3 | . . . . . 3 Indirectly . | . . . . . . Trap Hack Attempts . | . . . . . . Triggered . | . . . . . . Disarmed . | . . . . . . Reprogrammed . | . . . . . . Reused . | . . . . . . Traps Extracted . | . . . . . . Installed . | . . . . . . Triggered . | . . . . . . Machines | -11 -10 -10 -10 -9 -8 ---------- Run | Jun Mat Min Exi Min Mat Machines Disabled 1 | . . . . . 1 Max in Single Turn 1 | . . . . . 1 Machines Repaired . | . . . . . . Machines Sabotaged . | . . . . . . Overloaded Fab Kills . | . . . . . . Hacking | -11 -10 -10 -10 -9 -8 --------- Run | Jun Mat Min Exi Min Mat Machines Accessed 8 | . 5 . 1 . 2 Terminals 7 | . 5 . . . 2 Fabricators . | . . . . . . Repair Stations . | . . . . . . Recycling Units . | . . . . . . Scanalyzers . | . . . . . . Garrison Access . | . . . . . . Total Hacks 21 | . 16 . 1 . 4 Successful 7 | . 4 . 1 . 2 Failed 14 | . 12 . . . 2 Catastrophic 5 | . 5 . . . . Database Lockouts . | . . . . . . Manual 18 | . 14 . 1 . 3 Terminals 20 | . 16 . . . 4 Fabricators . | . . . . . . Repair Stations . | . . . . . . Recycling Units . | . . . . . . Scanalyzers . | . . . . . . Garrison Access . | . . . . . . Terminal Hacks 7 | . 4 . 1 . 2 Robot Analysis 3 | . 2 . . . 1 Branch Access Points 1 | . 1 . . . . Terminal Index 1 | . 1 . . . . Zone Layout 1 | . . . . . 1 EX-Prototype ID Bank 1 | . . . 1 . . Fabricator Hacks . | . . . . . . Repair Station Hacks . | . . . . . . Recycling Unit Hacks . | . . . . . . Scanalyzer . | . . . . . . Garrison Access Hacks . | . . . . . . Unauthorized Hacks . | . . . . . . Terminals . | . . . . . . Fabricators . | . . . . . . Repair Stations . | . . . . . . Recycling Units . | . . . . . . Scanalyzers . | . . . . . . Garrison Access . | . . . . . . Data Cores Recovered . | . . . . . . Used . | . . . . . . Hacking Detections 6 | . 5 . . . 1 Full Trace Events 2 | . 1 . . . 1 Feedback Events . | . . . . . . Feedback Blocked . | . . . . . . Robot Schematics Acquired . | . . . . . . Robots Built . | . . . . . . Authchips . | . . . . . . Time . | . . . . . . Total Robot Build Rating . | . . . . . . Part Schematics Acquired . | . . . . . . Parts Built . | . . . . . . Authchips . | . . . . . . Time . | . . . . . . Total Part Build Rating . | . . . . . . Parts Repaired . | . . . . . . Time . | . . . . . . Parts Recycled . | . . . . . . Recycled Matter . | . . . . . . Retrieved Matter . | . . . . . . Retrieved Components . | . . . . . . Parts Scanalyzed . | . . . . . . Part Schematics Acquired . | . . . . . . Parts Damaged . | . . . . . . Bothacking | -11 -10 -10 -10 -9 -8 ------------ Run | Jun Mat Min Exi Min Mat Used RIF Installer . | . . . . . . Robots Hacked . | . . . . . . Non-combat . | . . . . . . Combat . | . . . . . . Robot Hacks Applied . | . . . . . . Relay Couplers Released . | . . . . . . Fabnet Peak Effective % . | . . . . . . Robots Rewired . | . . . . . . Allies Hacked . | . . . . . . Hacks Repelled . | . . . . . . Allies | -11 -10 -10 -10 -9 -8 -------- Run | Jun Mat Min Exi Min Mat Total Allies . | . . . . . . Largest Group . | . . . . . . Highest-Rated Group . | . . . . . . Highest-Rated Ally . | . . . . . . Total Orders . | . . . . . . Ally Attacks . | . . . . . . Total Damage . | . . . . . . Kills . | . . . . . . Allies Corrupted . | . . . . . . Allies Melted . | . . . . . . Intel | -11 -10 -10 -10 -9 -8 ------- Run | Jun Mat Min Exi Min Mat Robot Analysis Total 3 | . 2 . . . 1 Derelict Logs Recovered 2 | . . 2 . . . Drone Launches . | . . . . . . Drone Recoveries . | . . . . . . Exploration | -11 -10 -10 -10 -9 -8 ------------- Run | Jun Mat Min Exi Min Mat Turns Passed 2356 | 8 367 746 289 292 654 Spaces Moved 1338 | 7 236 319 255 234 287 Core 6 | . . . . . 6 Treads . | . . . . . . Legs 559 | 7 236 316 . . . Wheels 773 | . . 3 255 234 281 Hover . | . . . . . . Flight . | . . . . . . Fastest Speed 95 | 120 120 95 110 110 100 Average Speed 134 | 120 135 189 110 116 107 Slowest Speed 250 | 120 190 190 110 125 250 Overloaded Moves . | . . . . . . Propulsion Burnouts . | . . . . . . Robots Hopped . | . . . . . . Cave-ins Triggered . | . . . . . . Exploration Rate (%) 39 | 2 42 61 61 39 31 Regions Visited 5 Branch Regions 3 Pre-discovered Areas . | . . . . . . Known Exits Taken 1 | . 1 . . . . Unknown Exits Taken 4 | 1 . 1 1 1 . Scrap Searched 3 | . . . . 3 . Spaces Dug . | . . . . . . Terrain Destroyed 37 | . . 29 . . 8 Melee . | . . . . . . Projectile 8 | . . . . . 8 AOE 29 | . . 29 . . . Terrain Rammed . | . . . . . . Walls Destroyed . | . . . . . . Machines Disabled . | . . . . . . Actions | -11 -10 -10 -10 -9 -8 --------- Run | Jun Mat Min Exi Min Mat Total 1715 | 6 268 409 263 254 515 Wait 148 | . . 40 . 8 100 Move 1333 | 6 235 318 254 233 287 Hop . | . . . . . . Pick Up 40 | . 10 6 2 7 15 Fast Attach 11 | . 1 . . . 10 Attach 22 | . 1 2 5 . 14 Detach . | . . . . . . Swap 28 | . 7 8 1 1 11 Drop 35 | . 6 5 1 5 18 Fire 90 | . 2 30 . . 58 Melee 6 | . 6 . . . . Ram 2 | . . . . . 2 Kick . | . . . . . . Crush . | . . . . . . Escape Stasis . | . . . . . . Rewire . | . . . . . . Trap . | . . . . . . Miscellaneous . | . . . . . . Route ------- -11/Junkyard -10/Materials (discovered 2 exits: [*Mat] / *Min) -10/Mines -10/Exiles (discovered 2 exits: [*Min x2]) -9/Mines -8/Materials (discovered 1 exit: Fac) History --------- Turn | Location | Event 1 | -11/Junkyard | Discovered new exit (range 3) 9 | -11/Junkyard | Entered Materials 84 | -10/Materials | Identified exit to Mines 135 | -10/Materials | Discovered new exit (range 16) 308 | -10/Materials | Build established: Mutant 376 | -10/Materials | Entered Mines 404 | -10/Mines | YI-UF0 nonchalantly dropped a Grenade Launcher on the ground 411 | -10/Mines | Learned location of 1 exit from Materials 1084 | -10/Mines | Assembled infested the area 1089 | -10/Mines | Assisted by a Guerilla fighting off Assembled 1101 | -10/Mines | Core integrity fell below 50% 1116 | -10/Mines | Discovered new exit (range 6) 1119 | -10/Mines | Core integrity fell below 20% 1122 | -10/Mines | Entered Exiles 1124 | -10/Exiles | Destroyed 10 combat bots 1147 | -10/Exiles | Discovered new exit (range 15) 1152 | -10/Exiles | Lost 6 parts (1p2n1u2w) 1160 | -10/Exiles | Met 8R-AWN 1177 | -10/Exiles | Met EX-HEX 1209 | -10/Exiles | Met EX-BIN 1222 | -10/Exiles | Aligned with FarCom system 1224 | -10/Exiles | Given EX-Vault access code 1249 | -10/Exiles | Opened EX-Vault 1258 | -10/Exiles | Found XL Autogun Array 1283 | -10/Exiles | Warned to stay clear of 0b10 Research branches 1313 | -10/Exiles | Met EX-DEC 1398 | -10/Exiles | Discovered new exit (range 14) 1411 | -10/Exiles | Left Exiles lab with XL Autogun Array 1411 | -10/Exiles | Entered Mines 1690 | -9/Mines | Discovered new exit (range 11) 1703 | -9/Mines | Entered Materials 1703 | -8/Materials | Evolved 4 slots: Propulsion x2, Utility x2 1704 | -8/Materials | Identified exit to Factory 2277 | -8/Materials | Build established: Scavenger-Mutant 2307 | -8/Materials | Core integrity fell below 50% 2331 | -8/Materials | Core integrity fell below 20% 2357 | -8/Materials | Destroyed by H-61 Shepherd with Heavy Assault Cannon Last Messages --------------- 02341_ Acquired 4 matter. 02341_ Acquired 6 matter. 02341_ Acquired 21 matter. 02341_ Acquired 57 matter. 02341_ Acquired 9 matter. 02341_ Acquired 6 matter. 02341_ Acquired 57 matter. 02341_ Acquired 5 matter. 02341_ Acquired 21 matter. 02341_ Dropped Lrg. Storage Unit. 02345_ W-25 Informer sends out distress signal. 02348_ Acquired Hvy. Assault Rifle. 02350_ Acquired 10 matter. 02351_ Hpw. Shotgun destroyed. 02352_ Knocked back. 02353_ Acquired 3 matter. 02355_ Targeting Computer destroyed. 02355_ M-13 Machinist repairs H-61 Shepherd. 02356_ Dropped Hcp. Matter Pod. 02357_ Penetrated by Slug. Map ----- +----------------------------------------------------+ | ???????????? ## + ## ###########??????????? | | ???????????? ## #########+#####????????????????? | | ??????????????# # #????????????????? | | ???######+##### # #????????????????? | | ?? # #????????????????? | | ?? + #????????????????? | | ???##### """"" # #????????????????? | | ???????# """"" # #????????????????? | | ???????#? """"" !#######+#######????????????????? | | ??????????""""" ## ] #????????????????????? | | ??????????""""" ## #????????????????????? | | ??????????""""" # #????????????????????? | | ???????? """"" # #????????????????????? | | ???? + !#????????????????????? | | ???# [ # """""!!#????????????????????? | | ???? ####### # """ ! *#????????????????????? | | ?????????????####### """ #????????????????????? | | ???????????????????# = = #????????????????????? | | ???????????????????#######m;#????????????????????? | | ????????????????????????##H#?????????????????????? | | ?????????????########???#"[#?????????????????????? | | ?????????????# ??##x##????????????????????? | | ?????????????# ##a #????????????????????? | | ?????????????# / xb #?????? #??????????? | | ????????g????# ## sg#w #??????????? | | ????????????????????? ??#@ g/ !! +??????????? | | ??????????????????? ???#! s# ! s #??????????? | | ???????????????g?? ????# %k#?#########??????????? | | ????????????????? [?????# #????????????????????? | | ????????????????#???o??? ????????????????????? | | ???????????????????w????*k #???????????????????? | | ??????????????????????? #???????????????????? | | ??????????????????????? #???????????????????? | | ??????????????????????## #???????????????????? | | ???????????????????????## ##???????????????????? | | ????????????????????????# #????????????????????? | | ????????????????????????# #????????????????????? | | ????????????????????????+ #????????????????????? | | ????????????????????????? #????????????????????? | | ????????????????????????? #????????????????????? | | ????????????????????????? ?????????????????????? | | ?????????????????????????????????????????????????? | | ?????????????????????????????????????????????????? | | ?????????????????????????????????????????????????? | | ?????????????????????????????????????????????????? | | ?????????????????????????????????????????????????? | | ?????????????????????????????????????????????????? | | ?????????????????????????????????????????????????? | | ?????????????????????????????????????????????????? | | ?????????????????????????????????????????????????? | +----------------------------------------------------+ Best States ------------- Heat Dissipation 45 Energy Generation 14 Energy Capacity 160 Matter Stores 605 Matter Capacity 700 Sight Range 16 Terrain Scan Density 10 Armor Coverage 225 Propulsion Shielding 33 Evasion (%) 55 Targeting Accuracy 5 Recoil Reduction 4 Item Schematics ----------------- None Robot Schematics ------------------ None Fabricated ------------ Nothing Alien Tech Used ----------------- None Achievements -------------- None Challenges ------------ None Game ------ Seed GlidesysRocketShearcannon Manual? 0 Play Time 00:26:17 Cumulative 147.1 hours Start 2023.11.12 @ 00:12:39 End 2023.11.12 @ 00:38:32 Sessions 1 Manual Loads 0 Difficulty Rogue Special Mode None Game No. 224 Rogue 224 Adventurer 0 Explorer 0 Win Type - Total 0 Types 0/0/0/0/0/0/0/0/0 Lore% 49 Gallery% 58 Achievement% 43 Wizard Run 0 Options --------- ASCII 0 Keyboard 0 Movement Mouse Keybinds 1 Fullscreen 2 Font 18/X11 Map View 76x50 Tactical HUD 1 Map Filters SATURATION(75) Filters LOW_CONTRAST(23,23,23) Steam 1 RUN: 3b65117a-ea63-4504-a266-995534bfe952